bitfinex/quotes_ETHUSD_20240604
["timestamp","ask_amount","ask_price","bid_price","bid_amount"]
[1717513571351,77.77093566,3777.0,3776.9,80.72373116]
[1717513571551,30.73377512,3777.0,3776.9,59.06618689]
[1717513571751,31.34176096,3777.0,3776.9,58.69618689]
[1717513571994,79.92876096,3777.0,3776.9,58.35618689]
[1717513572223,75.55986243,3777.0,3776.9,58.35618689]
[1717513572526,24.423547,3777.0,3776.9,58.35618689]
[1717513572657,74.923547,3777.0,3776.9,58.35618689]
[1717513573168,79.07819642,3777.0,3776.9,58.35618689]
[1717513573668,80.99119642,3777.0,3776.9,58.35618689]
[1717513574685,80.99119642,3777.0,3776.9,58.42373788]
[1717513574891,78.20819642,3777.0,3776.9,58.42373788]
[1717513575097,84.23809642,3777.0,3776.9,58.42373788]
[1717513577637,59.20759771,3777.0,3776.9,58.42373788]
[1717513577843,55.65759771,3777.0,3776.9,58.42373788]
[1717513578001,44.05349203,3777.0,3776.9,58.42373788]
[1717513578402,43.48084942,3777.0,3776.9,58.42373788]
[1717513578642,39.21163407,3777.0,3776.9,58.42373788]
[1717513578798,37.12959507,3777.0,3776.9,58.42373788]
[1717513578998,23.75000107,3777.0,3776.9,58.42373788]
[1717513579203,15.7971893,3777.0,3776.9,58.42373788]
[1717513580013,15.79706295,3777.0,3776.9,61.07404333]
[1717513580942,15.2246,3777.0,3776.9,62.98704333]
[1717513581240,7.2817,3777.0,3776.9,62.98704333]
[1717513581401,7.85413762,3777.0,3776.9,60.33673788]
[1717513582160,14.76013762,3777.0,3776.9,58.42373788]
[1717513582304,10.85413762,3777.0,3776.9,58.42373788]
[1717513583757,10.85413207,3777.0,3776.9,58.42373788]
[1717513584048,3.57243207,3777.0,3776.9,58.42373788]
[1717513584202,0.57243207,3777.0,3776.9,58.42373788]
[1717513584402,0.75,3777.2,3776.9,58.42373788]
[1717513585016,0.75,3777.2,3776.9,58.17373788]
[1717513586860,0.75,3777.2,3777.0,2.2657]
[1717513587159,0.75,3777.2,3777.1,0.06668537]
[1717513588254,0.75,3777.2,3777.1,1.97968537]
[1717513590320,0.75,3777.2,3777.1,4.40518537]
[1717513590856,3.0,3777.4,3777.1,4.40518537]
[1717513591030,0.75,3777.3,3777.2,1.69103548]
[1717513591436,0.75,3777.3,3777.2,1.75721673]
[1717513595128,3.0,3777.3,3777.2,1.75721673]
[1717513595316,0.75,3777.4,3777.3,2.3337]
[1717513595532,7.2817,3777.9,3777.3,2.3337]
[1717513595828,19.9,3778.2,3777.9,2.3337]
[1717513596227,0.75,3778.1,3777.9,2.3337]
[1717513596777,3.39687,3778.1,3777.9,2.3337]
[1717513597064,6.39687,3778.1,3777.5,4.2467]
[1717513597370,2.647,3777.9,3777.6,0.06564497]
[1717513597664,3.0,3777.8,3777.6,0.06564497]
[1717513598647,3.0,3777.8,3777.6,0.49687947]
[1717513598887,3.0,3778.1,3777.7,2.496]
[1717513599097,3.0,3778.1,3777.9,1.913]
[1717513599247,3.75,3778.1,3777.9,1.913]
[1717513600104,3.75,3778.1,3777.7,2.496]
[1717513600105,2.6469,3778.0,3777.7,2.496]
[1717513600242,3.0,3777.9,3777.7,2.496]
[1717513600630,7.324823,3777.8,3777.4,2.4152]
[1717513600834,2.64718,3777.6,3777.1,2.4152]
[1717513601061,2.64718,3777.6,3777.5,0.06554141]
[1717513601285,2.64718,3777.6,3777.1,2.4152]
[1717513601286,5.64718,3777.6,3777.1,2.4152]
[1717513601487,5.64718,3777.6,3777.5,0.06554141]
[1717513601488,19.565475,3777.6,3777.5,0.06554141]
[1717513601795,2.64746,3777.2,3776.8,2.2949]
[1717513601957,2.64746,3777.2,3776.6,1.913]
[1717513602155,0.75,3777.0,3776.6,1.913]
[1717513602337,0.75,3777.0,3776.4,2.2949]
[1717513602545,15.54639071,3777.0,3776.4,2.2949]
[1717513602852,14.82866771,3777.0,3776.4,2.2949]
[1717513603186,11.02562771,3777.0,3776.4,2.2949]
[1717513603335,9.0479801,3777.0,3776.4,2.2949]
[1717513603870,4.3224861,3777.0,3776.7,1.913]
[1717513604946,0.75,3777.0,3776.9,60.50048689]
[1717513605145,3.0,3777.1,3776.9,60.50048689]
[1717513605146,3.0,3777.4,3776.9,63.15079234]
[1717513605385,0.75,3777.3,3777.2,1.913]
[1717513606595,0.57236914,3777.3,3777.2,1.913]
[1717513607165,3.0,3777.4,3777.2,1.913]
[1717513607497,0.57236165,3777.3,3777.2,6.96040545]
[1717513607663,3.0,3777.5,3777.2,6.96040545]
[1717513608210,3.75,3777.5,3777.2,6.96040545]
[1717513608410,9.92864,3778.0,3777.2,6.96040545]
[1717513608554,0.57227649,3777.9,3777.6,1.913]
[1717513608754,3.39704,3777.8,3777.6,1.913]
[1717513608973,0.57227649,3777.7,3777.6,1.913]
[1717513610108,3.57227649,3777.7,3777.6,1.913]
[1717513611414,3.57227649,3777.7,3777.6,4.2148]
[1717513614482,3.57227649,3777.7,3777.6,4.2805986]
[1717513614819,4.32227649,3777.7,3777.6,4.2805986]
[1717513615171,4.32231644,3777.7,3777.6,4.2805986]
[1717513615372,4.32231644,3777.7,3777.6,1.9787986]
[1717513615576,4.32231644,3777.7,3777.6,0.0657986]
[1717513615795,2.64721,3777.6,3777.2,4.2233]
[1717513616418,0.57231644,3777.5,3777.2,4.2233]
[1717513617223,2.64732,3777.4,3777.2,4.2233]
[1717513617408,0.57231644,3777.3,3777.2,4.2233]
[1717513618599,0.57231644,3777.3,3777.2,1.913]
[1717513619423,0.57236783,3777.3,3777.2,1.913]
[1717513620626,0.57236783,3777.6,3777.2,1.913]
[1717513620823,2.64726,3777.5,3777.2,1.913]
[1717513621008,7.2817,3778.0,3776.9,58.10618689]
[1717513621009,2.64759,3777.1,3776.9,58.10618689]
[1717513621210,0.57236783,3777.0,3776.9,58.10618689]
[1717513621410,3.57236783,3777.0,3776.9,58.10618689]
[1717513621618,4.32236783,3777.0,3776.9,58.10618689]
[1717513622015,4.32236783,3777.0,3776.9,60.01918689]
[1717513623418,3.57236783,3777.0,3776.9,60.01918689]
[1717513625329,4.32236783,3777.0,3776.9,60.01918689]
[1717513628825,4.32243429,3777.0,3776.9,60.01918689]
[1717513629460,4.32243429,3777.0,3776.9,60.08540049]
[1717513630440,4.32240729,3777.0,3776.9,60.08540049]
[1717513634259,3.57240729,3777.0,3776.9,62.47630049]
[1717513636095,0.57240729,3777.0,3776.9,62.47630049]
[1717513636298,0.57240729,3777.1,3776.9,62.47630049]
[1717513636607,2.64746,3777.2,3776.9,62.47630049]
[1717513636811,3.0,3777.1,3776.9,62.47630049]
[1717513636966,0.57236864,3777.0,3776.9,62.47630049]
[1717513637518,0.57237261,3777.0,3776.9,62.47630049]
[1717513640750,0.57237798,3777.0,3776.9,62.47630049]
[1717513641355,0.57237798,3777.0,3776.9,64.53206125]
[1717513641647,0.57237798,3777.4,3776.9,64.53206125]
[1717513641851,0.57237798,3777.4,3777.3,1.913]
[1717513642562,0.57237798,3777.4,3777.3,1.97908468]
[1717513643721,0.57237798,3777.4,3777.3,4.42028468]
[1717513644155,3.57237798,3777.7,3777.3,4.86231315]
[1717513644333,0.57237798,3777.6,3777.3,2.94931315]
[1717513644539,0.57237798,3777.9,3777.5,1.913]
[1717513644866,3.57237798,3777.9,3777.6,0.06570927]
[1717513645021,0.57237798,3777.8,3777.6,0.06570927]
[1717513645267,3.0,3777.8,3777.6,0.55190304]
[1717513645430,3.0,3778.0,3777.7,2.3468]
[1717513645741,0.57223069,3777.9,3777.7,2.3468]
[1717513647156,0.5722618,3777.9,3777.7,2.3468]
[1717513648741,0.5722618,3778.0,3777.8,0.06545655]
[1717513649250,0.5722618,3778.0,3777.9,0.06543863]
[1717513649650,0.5722618,3778.0,3777.7,2.3468]
[1717513649824,0.5722618,3778.0,3777.9,0.06543863]
[1717513650025,0.5722618,3778.0,3777.8,0.06545655]
[1717513650320,0.5722618,3778.0,3777.9,0.06543863]
[1717513650507,0.5722618,3778.0,3777.7,2.3468]
[1717513650922,0.5722618,3778.0,3777.8,0.06545655]
[1717513651309,0.5722618,3778.0,3777.7,2.3468]
[1717513651539,0.5722618,3778.0,3777.9,0.06543863]
[1717513651746,0.5722618,3778.0,3777.7,2.3468]
[1717513651747,0.5722618,3778.0,3777.8,0.06545655]
[1717513651945,0.5722618,3778.0,3777.9,0.06543863]
[1717513652146,0.5722618,3778.0,3777.7,2.3468]
[1717513652352,3.0,3778.1,3777.8,0.06545655]
[1717513652525,3.0,3778.1,3777.7,2.77278]
[1717513652725,3.0,3778.1,3777.8,0.06545655]
[1717513652963,3.0,3778.1,3777.7,2.3468]
[1717513653195,0.5722281,3778.0,3777.8,0.06514215]
[1717513653563,0.5722281,3778.0,3777.7,2.3468]
[1717513653763,0.5722281,3778.0,3777.8,0.06514215]
[1717513653982,0.5722281,3778.0,3777.7,2.3468]
[1717513654185,0.5722281,3778.0,3777.9,0.06512423]
[1717513654503,0.5722281,3778.0,3777.8,0.06514215]
[1717513654790,0.5722281,3778.0,3777.9,0.06512423]
[1717513655171,0.5722281,3778.0,3777.7,2.3468]
[1717513655497,0.5722281,3778.0,3777.8,0.06514215]
[1717513655856,0.5722281,3778.0,3777.7,2.3468]
[1717513656093,0.5722281,3778.0,3777.9,0.06512423]
[1717513656580,0.5722281,3778.0,3777.7,2.3468]
[1717513656788,0.5722281,3778.0,3777.9,0.06512423]
[1717513656973,0.5722281,3778.0,3777.8,0.06514215]
[1717513657174,0.5722281,3778.0,3777.7,2.3468]
[1717513657374,0.5722281,3778.0,3777.8,0.06514215]
[1717513657576,0.5722281,3778.0,3777.7,2.3468]
[1717513657808,0.5722281,3778.0,3777.8,0.06514215]
[1717513658001,0.5722281,3778.0,3777.9,0.799]
[1717513658497,0.5722281,3778.0,3777.9,0.86412423]
[1717513659915,0.5722281,3778.0,3777.9,0.06512423]
[1717513660208,1.3222281,3778.0,3777.9,0.799]
[1717513660666,1.3222281,3778.0,3777.9,0.86407421]
[1717513665985,1.32230236,3778.0,3777.9,0.86407421]
[1717513666405,0.57230236,3778.0,3777.9,0.86407421]
[1717513669918,3.21914893,3778.0,3777.9,0.86407421]
[1717513670215,6.21914893,3778.0,3777.9,0.86407421]
[1717513670618,6.21914893,3778.0,3777.9,0.799]
[1717513672325,6.21915983,3778.0,3777.9,0.799]
[1717513676254,6.21917247,3778.0,3777.9,0.799]
[1717513676407,2.64712,3777.7,3777.4,2.4626]
[1717513676612,2.64712,3777.7,3777.6,0.799]
[1717513677131,3.21939371,3777.7,3777.6,0.86007948]
[1717513682195,3.21939371,3777.7,3777.6,3.55754743]
[1717513682196,0.57227371,3777.7,3777.6,3.55754743]
[1717513682408,2.64689,3778.1,3777.6,3.22527948]
[1717513682409,0.57227371,3778.0,3777.6,3.22527948]
[1717513682715,0.57227371,3778.0,3777.9,0.799]
[1717513683379,0.57227371,3778.0,3777.9,0.8600257]
[1717513683851,0.57227371,3778.0,3777.9,1.18254827]
[1717513684039,0.57227371,3778.0,3777.9,3.1849257]
[1717513684243,3.57227371,3778.3,3777.9,3.1239]
[1717513684575,3.0,3778.3,3778.2,0.799]
[1717513684777,0.57219313,3778.3,3778.2,0.799]
[1717513684983,0.57219313,3778.3,3778.2,3.187]
[1717513685178,7.2817,3778.4,3778.2,4.82696577]
[1717513685476,7.2817,3778.4,3778.3,0.06069683]
[1717513685682,5.64633,3778.9,3778.4,2.4058]
[1717513685986,5.64633,3778.9,3778.8,0.799]
[1717513686141,6.21840733,3778.9,3778.8,0.799]
[1717513687375,5.64633,3778.9,3778.8,0.799]
[1717513687694,6.21844655,3778.9,3778.8,0.799]
[1717513687841,2.64652,3778.6,3778.4,2.4058]
[1717513688054,2.64652,3778.6,3777.7,2.2707]
[1717513688279,2.64652,3778.6,3778.5,0.799]
[1717513688462,3.21868057,3778.6,3777.8,1.3819915]
[1717513688674,2.64652,3778.6,3778.5,0.799]
[1717513689080,3.21870294,3778.6,3778.5,0.799]
[1717513690173,2.64682,3778.2,3777.7,2.2707]
[1717513690514,2.64682,3778.2,3778.1,0.799]
[1717513691040,3.2190552,3778.2,3778.1,0.799]
[1717513691244,2.64682,3778.2,3778.1,0.85936835]
[1717513691394,3.2190552,3778.2,3778.1,0.85936835]
[1717513691729,6.9690552,3778.2,3778.1,0.85936835]
[1717513692580,6.2190552,3778.2,3778.1,0.85936835]
[1717513692983,6.9690552,3778.2,3778.1,0.85936835]
[1717513693176,6.9690552,3778.2,3778.1,0.06036835]
[1717513693492,2.64714,3777.7,3777.4,2.4682]
[1717513693819,2.64714,3777.7,3777.6,0.799]
[1717513696742,0.7497,3778.1,3777.0,2.2811]
[1717513696743,2.64735,3777.4,3777.0,2.2811]
[1717513697011,2.64735,3777.4,3777.3,0.799]
[1717513697723,3.21970081,3777.4,3777.3,0.799]
[1717513697894,2.64735,3777.4,3777.3,0.799]
[1717513698784,3.21967766,3777.4,3777.3,0.799]
[1717513699218,2.64735,3777.4,3777.3,0.799]
[1717513699824,3.21969045,3777.4,3777.3,0.799]
[1717513700032,2.64735,3777.4,3777.3,0.799]
[1717513701523,2.64707,3777.8,3777.3,1.10701]
[1717513701726,2.64707,3777.8,3777.7,0.799]
[1717513701928,6.21934063,3777.8,3777.7,0.799]
[1717513702092,5.64707,3777.8,3777.7,0.799]
[1717513702418,7.2817,3778.3,3777.7,0.799]
[1717513702419,2.64681,3778.2,3777.7,0.799]
[1717513702623,2.64681,3778.2,3778.1,0.799]
[1717513703224,2.64681,3778.2,3778.1,0.85984639]
[1717513703529,2.64681,3778.2,3778.1,0.06084639]
[1717513703832,3.21904175,3778.2,3778.1,0.799]
[1717513705648,2.647,3777.9,3777.4,2.3313]
[1717513705940,2.647,3777.9,3777.8,0.799]
[1717513706140,3.21928289,3777.9,3777.8,0.799]
[1717513706339,2.647,3777.9,3777.8,0.799]
[1717513706994,3.21925833,3777.9,3777.8,0.799]
[1717513707196,2.647,3777.9,3777.8,0.799]
[1717513707552,2.647,3777.9,3777.4,2.3313]
[1717513707755,2.64721,3777.6,3777.4,2.3313]
[1717513708065,2.64721,3777.6,3777.5,0.85982177]
[1717513708739,3.21949377,3777.6,3777.5,0.85982177]
[1717513708904,2.64721,3777.6,3777.5,0.85982177]
[1717513709260,3.21949377,3777.6,3777.5,0.85982177]
[1717513709397,2.64721,3777.6,3777.5,0.85982177]
[1717513709798,3.21949377,3777.6,3777.5,0.85982177]
[1717513710342,2.64721,3777.6,3777.5,0.85982177]
[1717513711707,2.64721,3777.6,3777.5,3.15282177]
[1717513713257,2.64721,3777.6,3777.5,0.85982177]
[1717513713659,3.21951191,3777.6,3777.5,0.85982177]
[1717513723553,3.21954604,3777.6,3777.5,0.85982177]
[1717513725876,2.64721,3777.6,3777.5,0.85982177]
[1717513726241,3.21954502,3777.6,3777.5,0.85982177]
[1717513726438,3.21954502,3777.6,3777.5,3.14952177]
[1717513727842,3.21954502,3777.6,3777.5,0.85982177]
[1717513728251,3.21954502,3777.6,3777.5,0.06082177]
[1717513728458,3.21954502,3777.6,3777.5,0.85982177]
[1717513728769,3.21954502,3777.6,3777.5,0.799]
[1717513729650,3.21954502,3777.6,3777.5,0.85983251]
[1717513730769,3.21954502,3777.6,3777.5,0.06083251]
[1717513730960,3.21954502,3777.6,3777.5,0.85983251]
[1717513733094,2.64721,3777.6,3777.5,0.85983251]
[1717513733251,3.21954455,3777.6,3777.5,0.85983251]
[1717513733923,3.21954264,3777.6,3777.5,0.85983251]
[1717513734106,6.21954264,3777.6,3777.5,0.06083251]
[1717513734393,6.21954264,3777.6,3777.5,0.85983251]
[1717513734591,6.21957382,3777.6,3777.5,0.799]
[1717513734795,6.21957382,3777.6,3777.5,0.85983251]
[1717513736184,6.21957382,3777.6,3777.5,0.06083251]
[1717513736388,6.21957382,3777.6,3777.5,0.85983251]
[1717513736559,6.21957382,3777.6,3777.5,0.799]
[1717513736887,6.21957382,3777.6,3777.5,0.85986821]
[1717513737785,8.86678382,3777.6,3777.5,0.06086821]
[1717513737953,9.61678382,3777.6,3777.5,0.06086821]
[1717513738153,2.6476,3777.0,3776.9,58.10618689]
[1717513738367,2.6476,3777.0,3776.9,58.90518689]
[1717513738611,3.21996382,3777.0,3776.9,58.90518689]
[1717513738774,2.6476,3777.0,3776.9,58.90518689]
[1717513739458,3.21996382,3777.0,3776.9,58.90518689]
[1717513740412,3.21996382,3777.0,3776.9,59.64657545]
[1717513740570,3.21996382,3777.0,3776.9,61.96877545]
[1717513740958,3.21996382,3777.0,3776.9,59.64657545]
[1717513741178,3.21996382,3777.0,3776.9,58.90518689]
[1717513745490,3.21996382,3777.0,3776.9,61.40338689]
[1717513747021,0.57236382,3777.0,3776.9,61.40338689]
[1717513747226,0.57236382,3777.2,3776.9,61.40338689]
[1717513747425,0.57236382,3777.2,3777.1,0.799]
[1717513747629,2.6474,3777.3,3777.1,0.799]
[1717513749091,2.64719,3777.6,3777.2,3.76026577]
[1717513749297,2.64719,3777.6,3777.3,2.25]
[1717513749298,0.57229269,3777.5,3777.3,2.25]
[1717513749515,0.57229269,3777.5,3777.4,0.799]
[1717513750031,0.57229269,3777.5,3777.4,0.85985755]
[1717513750420,0.57228228,3777.5,3777.4,0.85985755]
[1717513751095,2.64719,3777.6,3777.4,0.85985755]
[1717513752895,0.57225993,3777.5,3777.4,0.85985755]
[1717513754836,0.57228809,3777.5,3777.4,0.85985755]
[1717513755400,2.64719,3777.6,3777.4,0.85985755]
[1717513755630,0.57227218,3777.5,3777.4,0.85985755]
[1717513755834,0.57227218,3777.5,3777.4,0.06085755]
[1717513756011,0.57227218,3777.5,3777.4,0.85985755]
[1717513756309,2.64735,3777.4,3777.0,2.3604]
[1717513756540,2.64735,3777.4,3777.3,0.799]
[1717513756740,3.21962218,3777.4,3777.3,0.799]
[1717513758734,2.64735,3777.4,3777.3,0.799]
[1717513758929,3.21965773,3777.4,3777.3,0.799]
[1717513760431,2.64735,3777.4,3777.3,1.11494]
[1717513760637,2.64735,3777.4,3777.3,3.53004]
[1717513761594,2.64697,3777.9,3777.3,4.85130577]
[1717513761793,0.5722737,3777.8,3777.5,2.4747]
[1717513761997,9.92846,3778.2,3777.3,0.31594]
[1717513761998,0.5722737,3778.1,3777.8,2.4747]
[1717513762235,9.92846,3778.2,3778.0,0.799]
[1717513762598,7.2817,3778.2,3778.1,2.4554]
[1717513764557,7.2817,3778.2,3778.1,2.50620067]
[1717513765125,7.2817,3778.2,3778.1,3.82746644]
[1717513765442,7.2817,3778.5,3778.1,4.29011308]
[1717513765655,7.2817,3778.5,3778.4,0.799]
[1717513767994,2.64663,3778.4,3778.1,2.91804664]
[1717513768300,2.64663,3778.4,3777.7,2.3521]
[1717513768522,2.64663,3778.4,3778.3,0.799]
[1717513768865,3.21883047,3778.4,3778.3,0.799]
[1717513769283,2.64663,3778.4,3778.3,0.799]
[1717513770412,2.64632,3778.9,3778.3,4.37666577]
[1717513770728,2.64632,3778.9,3778.8,0.799]
[1717513770882,6.21843607,3778.9,3778.8,0.799]
[1717513771059,6.21843607,3778.9,3778.8,0.84951806]
[1717513771718,6.21843607,3778.9,3778.8,0.05051806]
[1717513771861,6.21843607,3778.9,3778.8,0.84951806]
[1717513772060,6.21843607,3778.9,3778.8,0.799]
[1717513772768,6.21843607,3778.9,3777.3,2.96328]
[1717513772769,2.64678,3778.2,3777.7,2.4627]
[1717513772988,2.64678,3778.2,3778.1,0.799]
[1717513777156,2.64678,3778.2,3777.7,2.4627]
[1717513777157,2.64704,3777.8,3777.3,2.63934]
[1717513777338,2.64704,3777.8,3777.7,0.799]
[1717513777541,2.64682,3778.2,3777.7,0.799]
[1717513777849,2.64682,3778.2,3777.4,1.32126577]
[1717513777850,2.64682,3778.2,3778.1,0.799]
[1717513781967,3.21900425,3778.2,3778.1,0.799]
[1717513784443,2.64708,3777.8,3777.5,2.4164]
[1717513784774,2.64708,3777.8,3777.7,0.799]
[1717513785147,2.64708,3777.8,3777.7,0.84967594]
[1717513790297,2.64708,3777.8,3777.7,2.17094171]
[1717513792087,2.64708,3777.8,3777.7,0.05067594]
[1717513792288,3.21930131,3777.8,3777.7,0.799]
[1717513792534,3.21933958,3777.8,3777.7,0.799]
[1717513793490,3.21933958,3777.8,3777.7,2.44180577]
[1717513793809,2.64708,3777.8,3777.7,2.4924924]
[1717513794715,2.64682,3778.2,3777.7,2.4924924]
[1717513794894,2.64682,3778.2,3778.1,0.799]
[1717513795091,3.21903188,3778.2,3778.1,0.799]
[1717513795326,3.21903188,3778.2,3778.1,0.84961493]
[1717513797348,3.21903188,3778.2,3778.1,3.14411493]
[1717513797843,0.57221188,3778.2,3778.1,4.91191877]
[1717513798057,0.57221188,3778.4,3778.1,4.91191877]
[1717513798343,0.57221188,3778.4,3778.3,0.799]
[1717513798538,0.57221188,3778.4,3778.3,2.12026577]
[1717513799128,0.57221188,3778.4,3778.3,2.66203495]
[1717513799507,7.2817,3778.5,3778.3,2.66203495]
[1717513799842,0.57213473,3778.4,3778.3,1.86303495]
[1717513800011,0.57213473,3778.4,3778.3,2.66203495]
[1717513800705,0.57213473,3778.4,3778.3,5.09293495]
[1717513801015,0.57213473,3778.5,3778.3,5.09293495]
[1717513801231,0.57213473,3778.5,3778.4,2.95271307]
[1717513801541,2.64654,3778.6,3778.4,3.00327424]
[1717513802037,2.64625,3779.0,3778.5,2.4374]
[1717513802238,2.64625,3779.0,3778.9,0.799]
[1717513802441,7.2817,3779.5,3779.0,2.4258]
[1717513802442,2.64597,3779.4,3779.0,2.4258]
[1717513802646,2.64597,3779.4,3779.1,1.32126577]
[1717513802858,2.64597,3779.4,3779.3,0.799]
[1717513803362,2.64565,3779.8,3779.3,2.17043361]
[1717513803579,2.64565,3779.8,3779.7,0.799]
[1717513805597,11.60410568,3780.4,3779.8,2.785]
[1717513805803,0.7497,3781.2,3780.3,0.799]
[1717513805965,0.7497,3781.2,3779.9,0.04957843]
[1717513805966,2.64511,3780.6,3779.9,0.04957843]
[1717513806291,2.64511,3780.6,3780.5,0.799]
[1717513806664,2.64511,3780.6,3780.5,0.84823549]
[1717513806864,5.64511,3780.6,3780.5,0.84823549]
[1717513808289,0.799,3782.0,3780.5,2.16950126]
[1717513808585,0.75,3781.7,3781.6,0.799]
[1717513808785,2.64452,3781.4,3780.7,2.785]
[1717513808952,2.64452,3781.4,3781.3,0.799]
[1717513809147,2.64452,3781.4,3780.6,2.473]
[1717513809364,2.64452,3781.4,3781.3,0.799]
[1717513809799,2.64452,3781.4,3781.3,0.84784617]
[1717513809800,5.64452,3781.4,3781.3,0.84784617]
[1717513809985,5.64452,3781.4,3781.3,1.37011194]
[1717513810288,2.64452,3781.4,3781.3,1.37011194]
[1717513810449,2.64426,3781.8,3781.3,1.37011194]
[1717513811402,2.64426,3781.8,3781.6,1.915]
[1717513811815,2.64426,3781.8,3781.7,0.04872111]
[1717513812283,2.64426,3781.8,3781.6,1.915]
[1717513812484,2.64426,3781.8,3781.7,0.04872111]
[1717513813209,2.64426,3781.8,3781.6,1.915]
[1717513813416,2.64426,3781.8,3781.7,0.04872111]
[1717513813923,2.64426,3781.8,3781.6,1.915]
[1717513814075,2.64426,3781.8,3781.7,0.04872111]
[1717513814509,2.64426,3781.8,3781.6,1.915]
[1717513814711,2.64426,3781.8,3781.7,0.04796131]
[1717513815087,2.64426,3781.8,3781.6,1.915]
[1717513815428,2.64426,3781.8,3781.7,0.04796131]
[1717513815589,3.0,3782.2,3781.7,1.36922708]
[1717513815590,2.64397,3782.2,3781.7,1.36922708]
[1717513815790,2.64397,3782.2,3782.0,1.915]
[1717513816308,2.64397,3782.2,3782.1,0.04788976]
[1717513816629,2.64397,3782.2,3782.0,1.915]
[1717513816772,2.64397,3782.2,3782.1,0.04788976]
[1717513817279,2.64397,3782.2,3782.0,1.915]
[1717513817483,2.64397,3782.2,3782.1,0.04788976]
[1717513817804,7.2817,3782.3,3782.1,0.04788976]
[1717513817805,7.2817,3782.3,3782.1,1.32126577]
[1717513818014,2.6437,3782.6,3782.2,1.32126577]
[1717513818365,2.6437,3782.6,3782.4,1.915]
[1717513818594,2.6437,3782.6,3782.5,0.04747238]
[1717513819891,2.6437,3782.6,3782.5,1.36873815]
[1717513820093,2.6437,3782.6,3782.5,1.69711197]
[1717513822353,5.64342,3783.0,3782.5,1.69711197]
[1717513822515,5.64342,3783.0,3782.6,1.32126577]
[1717513822825,5.64342,3783.0,3782.7,0.04743662]
[1717513823194,5.64342,3783.0,3782.6,1.32126577]
[1717513823396,5.64342,3783.0,3782.8,0.04741874]
[1717513823648,5.64342,3783.0,3782.7,0.04743662]
[1717513823872,5.64342,3783.0,3782.6,1.32126577]
[1717513824031,5.64342,3783.0,3782.8,0.04741874]
[1717513824227,5.64342,3783.0,3782.7,0.04743662]
[1717513824438,5.64342,3783.0,3782.6,1.32126577]
[1717513824697,5.64342,3783.0,3782.7,0.04703028]
[1717513824944,5.64342,3783.0,3782.6,1.32126577]
[1717513825146,2.64367,3782.7,3782.0,5.45642658]
[1717513825348,2.64367,3782.7,3782.2,1.915]
[1717513825507,2.64367,3782.7,3782.3,1.32126577]
[1717513829864,2.64384,3782.4,3781.6,2.93716658]
[1717513830052,2.64407,3782.1,3781.7,1.32126577]
[1717513830549,2.64407,3782.1,3781.8,1.915]
[1717513830758,2.6438,3782.5,3781.9,1.32126577]
[1717513830908,2.6438,3782.5,3782.3,1.915]
[1717513831111,2.6438,3782.5,3782.4,1.32126577]
[1717513832057,2.6438,3782.5,3782.4,2.11826577]
[1717513835058,2.64401,3782.2,3781.6,5.0503]
[1717513835263,2.64401,3782.2,3782.1,0.797]
[1717513835556,2.64401,3782.2,3781.7,1.32126577]
[1717513835752,2.64401,3782.2,3782.1,0.797]
[1717513839289,2.64401,3782.2,3782.1,2.11826577]
[1717513839602,2.64401,3782.2,3782.1,2.19098538]
[1717513840565,2.64372,3782.6,3782.1,2.19098538]
[1717513840770,2.64372,3782.6,3782.5,0.797]
[1717513841390,2.64372,3782.6,3782.5,0.86974143]
[1717513842269,2.64372,3782.6,3782.5,2.1910072]
[1717513846279,2.64345,3783.0,3782.6,2.785]
[1717513846493,2.64345,3783.0,3782.9,0.797]
[1717513846713,7.2817,3783.3,3782.9,2.11826577]
[1717513847219,7.2817,3783.3,3783.2,0.797]
[1717513847419,2.64318,3783.4,3783.2,0.797]
[1717513847922,2.64318,3783.4,3783.2,1.912]
[1717513849120,2.64318,3783.4,3783.0,1.32126577]
[1717513849519,2.64318,3783.4,3783.1,0.07220586]
[1717513849744,2.64318,3783.4,3783.1,1.39347163]
[1717513849914,2.64318,3783.4,3783.1,1.32126577]
[1717513850825,2.64318,3783.4,3783.2,0.07218727]
[1717513852620,3.39288,3783.4,3783.2,0.07218727]
[1717513852821,2.64357,3782.8,3782.4,2.2608]
[1717513852993,2.64357,3782.8,3782.5,1.32126577]
[1717513853201,2.64357,3782.8,3782.6,0.06959781]
[1717513853529,2.64357,3782.8,3782.7,1.32126577]
[1717513853816,2.64357,3782.8,3782.7,3.30284498]
[1717513856261,2.64357,3782.8,3782.7,5.66574498]
[1717513857825,2.64331,3783.2,3782.7,5.66574498]
[1717513858428,2.64331,3783.2,3783.1,1.912]
[1717513858725,2.64331,3783.2,3783.1,3.42446577]
[1717513859028,2.64331,3783.2,3783.1,3.49398128]
[1717513860525,2.64331,3783.2,3783.1,0.06951551]
[1717513860901,2.64331,3783.2,3782.7,2.3629]
[1717513861231,2.64331,3783.2,3782.8,1.32126577]
[1717513861431,2.64331,3783.2,3782.8,1.39078008]
[1717513861904,2.64331,3783.2,3783.0,1.912]
[1717513862098,2.64331,3783.2,3783.1,1.32126577]
[1717513862293,2.64331,3783.2,3783.1,1.39075635]
[1717513864866,2.643,3783.6,3783.1,4.17575635]
[1717513865073,2.643,3783.6,3783.1,1.39075635]
[1717513865287,2.643,3783.6,3783.2,0.66543244]
[1717513865571,2.643,3783.6,3783.4,4.1805]
[1717513865867,2.643,3783.6,3783.5,1.39012999]
[1717513866509,2.64274,3784.0,3783.5,1.39012999]
[1717513866714,2.64274,3784.0,3783.8,1.912]
[1717513867119,2.64274,3784.0,3783.9,0.06872578]
[1717513868147,2.64274,3784.0,3783.9,1.38999155]
[1717513868348,2.64274,3784.0,3783.9,1.58806413]
[1717513869157,2.64274,3784.0,3783.9,1.38999155]
[1717513869327,2.64274,3784.0,3783.9,0.06872578]
[1717513869715,2.64295,3783.7,3783.1,4.372]
[1717513870031,2.64295,3783.7,3783.2,1.32126577]
[1717513870438,0.1260623,3784.1,3783.6,4.10626577]